[Event "GrandPrix_29.05"]
[Site "Chess.com"]
[Date "2020.05.29"]
[Round "7"]
[White "jacky72"]
[Black "DrVelja"]
[Result "0-1"]
[WhiteElo "2151"]
[BlackElo "2184"]
[TimeControl "600+2"]
[EndTime "12:29:43 PDT"]
[Termination "DrVelja won by checkmate"]

1. d4 {[%clk 0:10:01.9]} 1... Nf6 {[%clk 0:10:00.9]} 2. c4 {[%clk 0:10:03.4]}
2... g6 {[%clk 0:10:01.5]} 3. Nc3 {[%clk 0:10:03.4]} 3... d5 {[%clk 0:10:00.4]}
4. Nf3 {[%clk 0:10:03.6]} 4... Bg7 {[%clk 0:10:01.4]} 5. h4 {[%clk 0:10:04.5]}
5... dxc4 {[%clk 0:09:53.6]} 6. e4 {[%clk 0:10:05.1]} 6... c5 {[%clk 0:09:55.3]}
7. d5 {[%clk 0:10:06.2]} 7... b5 {[%clk 0:09:56.9]} 8. h5 {[%clk 0:10:06.1]}
8... O-O {[%clk 0:09:39.9]} 9. hxg6 {[%clk 0:10:06]} 9... fxg6 {[%clk
0:09:41.8]} 10. e5 {[%clk 0:09:50.1]} 10... Ng4 {[%clk 0:09:40.6]} 11. e6 {[%clk
0:09:47.8]} 11... Rf5 {[%clk 0:08:05.7]} 12. Nxb5 {[%clk 0:08:28.2]} 12... Rxd5
{[%clk 0:07:21]} 13. Qc2 {[%clk 0:08:27.9]} 13... Ne5 {[%clk 0:07:08.2]} 14.
Nxe5 {[%clk 0:08:15.1]} 14... Rxe5+ {[%clk 0:07:07.8]} 15. Be3 {[%clk
0:08:14.5]} 15... a6 {[%clk 0:05:26.7]} 16. Nc3 {[%clk 0:08:06.3]} 16... Bxe6
{[%clk 0:05:26.4]} 17. Rd1 {[%clk 0:08:04]} 17... Qa5 {[%clk 0:04:32.7]} 18. Be2
{[%clk 0:07:47.3]} 18... Nc6 {[%clk 0:04:30.2]} 19. O-O {[%clk 0:07:47.2]} 19...
Rd8 {[%clk 0:03:27.1]} 20. Rxd8+ {[%clk 0:07:42.4]} 20... Qxd8 {[%clk 0:03:29]}
21. Qa4 {[%clk 0:07:36.2]} 21... Nb4 {[%clk 0:02:00.9]} 22. Bxc5 {[%clk
0:06:58.6]} 22... Nd3 {[%clk 0:01:59.6]} 23. Be3 {[%clk 0:06:49.3]} 23... Nxb2
{[%clk 0:01:53.4]} 24. Qxa6 {[%clk 0:06:49.3]} 24... Bf7 {[%clk 0:01:35.8]} 25.
Qa3 {[%clk 0:05:26.6]} 25... Nd3 {[%clk 0:01:32.3]} 26. Rd1 {[%clk 0:05:17.9]}
26... Qa5 {[%clk 0:01:24.3]} 27. Qxa5 {[%clk 0:04:46.1]} 27... Rxa5 {[%clk
0:01:26.2]} 28. Bxd3 {[%clk 0:04:48]} 28... Bxc3 {[%clk 0:01:25.1]} 29. Bxc4
{[%clk 0:04:41.3]} 29... Bxc4 {[%clk 0:01:23]} 30. Rc1 {[%clk 0:04:42.6]} 30...
Bf6 {[%clk 0:00:52.9]} 31. Rxc4 {[%clk 0:04:43.3]} 31... Rxa2 {[%clk 0:00:54.5]}
32. Bd4 {[%clk 0:04:32.5]} 32... Bg5 {[%clk 0:00:45.8]} 33. Rc5 {[%clk
0:04:25.5]} 33... Bf4 {[%clk 0:00:38.4]} 34. g3 {[%clk 0:04:26.3]} 34... Bd6
{[%clk 0:00:37.9]} 35. Rc1 {[%clk 0:04:20.7]} 35... Kf7 {[%clk 0:00:38.1]} 36.
Bc5 {[%clk 0:04:21.3]} 36... Be5 {[%clk 0:00:36]} 37. Re1 {[%clk 0:04:22]} 37...
Bf6 {[%clk 0:00:37.4]} 38. Re4 {[%clk 0:04:23.3]} 38... h5 {[%clk 0:00:37.8]}
39. Bd4 {[%clk 0:04:23.9]} 39... Ra4 {[%clk 0:00:38.4]} 40. Bxf6 {[%clk
0:04:23.2]} 40... Rxe4 {[%clk 0:00:39.6]} 41. Bg5 {[%clk 0:04:24]} 41... Ke6
{[%clk 0:00:40.6]} 42. Kg2 {[%clk 0:04:22.1]} 42... Kf5 {[%clk 0:00:42]} 43. Bd2
{[%clk 0:04:20.4]} 43... e5 {[%clk 0:00:43.2]} 44. Kf3 {[%clk 0:04:21.1]} 44...
Ra4 {[%clk 0:00:44.7]} 45. Be3 {[%clk 0:04:22.2]} 45... g5 {[%clk 0:00:46.1]}
46. Kg2 {[%clk 0:04:23]} 46... Ra3 {[%clk 0:00:44.2]} 47. Kf3 {[%clk 0:04:23.5]}
47... e4+ {[%clk 0:00:39.6]} 48. Kg2 {[%clk 0:04:24.1]} 48... Rxe3 {[%clk
0:00:37.3]} 49. fxe3 {[%clk 0:04:25.1]} 49... Kg4 {[%clk 0:00:39.2]} 50. Kf2
{[%clk 0:04:23.7]} 50... Kh3 {[%clk 0:00:40.5]} 51. g4 {[%clk 0:04:25.6]} 51...
h4 {[%clk 0:00:40.2]} 52. Kg1 {[%clk 0:04:27.5]} 52... Kg3 {[%clk 0:00:41.2]}
53. Kh1 {[%clk 0:04:28.7]} 53... Kf3 {[%clk 0:00:42.4]} 54. Kh2 {[%clk
0:04:29.9]} 54... Kxg4 {[%clk 0:00:43.9]} 55. Kg2 {[%clk 0:04:31.3]} 55... h3+
{[%clk 0:00:44.9]} 56. Kh2 {[%clk 0:04:33.2]} 56... Kh4 {[%clk 0:00:46.1]} 57.
Kg1 {[%clk 0:04:35.1]} 57... Kg4 {[%clk 0:00:47.5]} 58. Kh1 {[%clk 0:04:37]}
58... Kg3 {[%clk 0:00:48.7]} 59. Kg1 {[%clk 0:04:38.9]} 59... g4 {[%clk
0:00:50.1]} 60. Kh1 {[%clk 0:04:39.9]} 60... Kf3 {[%clk 0:00:51.6]} 61. Kh2
{[%clk 0:04:41]} 61... Kf2 {[%clk 0:00:52.9]} 62. Kh1 {[%clk 0:04:42.1]} 62...
Kxe3 {[%clk 0:00:54.4]} 63. Kh2 {[%clk 0:04:43.2]} 63... Kf3 {[%clk 0:00:55.9]}
64. Kh1 {[%clk 0:04:44.7]} 64... Kf2 {[%clk 0:00:57.1]} 65. Kh2 {[%clk
0:04:45.8]} 65... e3 {[%clk 0:00:58.7]} 66. Kh1 {[%clk 0:04:47.2]} 66... Kg3
{[%clk 0:00:58.4]} 67. Kg1 {[%clk 0:04:47.7]} 67... e2 {[%clk 0:00:59.8]} 68.
Kh1 {[%clk 0:04:49.6]} 68... Kf3 {[%clk 0:01:00.2]} 69. Kh2 {[%clk 0:04:50.3]}
69... Kf2 {[%clk 0:00:58.6]} 70. Kh1 {[%clk 0:04:51.3]} 70... e1=Q+ {[%clk
0:00:59.3]} 71. Kh2 {[%clk 0:04:53.2]} 71... Qe5+ {[%clk 0:00:59.6]} 72. Kh1
{[%clk 0:04:54.4]} 72... Kg3 {[%clk 0:00:59.2]} 73. Kg1 {[%clk 0:04:55.4]} 73...
Qc5+ {[%clk 0:01:00]} 74. Kh1 {[%clk 0:04:56.3]} 74... Qc6+ {[%clk 0:01:01.4]}
75. Kg1 {[%clk 0:04:57.5]} 75... h2+ {[%clk 0:01:02.9]} 76. Kf1 {[%clk
0:04:58.3]} 76... h1=Q+ {[%clk 0:01:04.3]} 77. Ke2 {[%clk 0:05:00.2]} 77... Kf4
{[%clk 0:01:05.3]} 78. Kf2 {[%clk 0:05:01.2]} 78... g3+ {[%clk 0:01:06.5]} 79.
Ke2 {[%clk 0:05:02.7]} 79... g2 {[%clk 0:01:07.4]} 80. Kd3 {[%clk 0:05:04.6]}
80... g1=Q {[%clk 0:01:07.7]} 81. Kd2 {[%clk 0:05:04.2]} 81... Qd7+ {[%clk
0:01:08.6]} 82. Ke2 {[%clk 0:05:06.1]} 82... Qgg4+ {[%clk 0:01:08.5]} 83. Kf2
{[%clk 0:05:07]} 83... Qgh4+ {[%clk 0:01:09.1]} 84. Ke2 {[%clk 0:05:07.5]} 84...
Qe4+ {[%clk 0:01:10.5]} 85. Kf1 {[%clk 0:05:08.2]} 85... Qd1# {[%clk 0:01:12]}
0-1

[Event "GrandPrix_29.05"]
[Site "Chess.com"]
[Date "2020.05.29"]
[Round "7"]
[White "Winawer81"]
[Black "crazyboy26"]
[Result "0-1"]
[WhiteElo "2173"]
[BlackElo "2389"]
[TimeControl "600+2"]
[EndTime "12:30:01 PDT"]
[Termination "crazyboy26 won by resignation"]

1. e4 {[%clk 0:10:01.9]} 1... Nc6 {[%clk 0:10:00.5]} 2. Nf3 {[%clk 0:10:00.3]}
2... d6 {[%clk 0:10:00.9]} 3. d4 {[%clk 0:09:58.8]} 3... Nf6 {[%clk 0:10:01.8]}
4. Nc3 {[%clk 0:09:58.6]} 4... g6 {[%clk 0:10:02.3]} 5. d5 {[%clk 0:09:44]} 5...
Nb8 {[%clk 0:10:02.5]} 6. Be2 {[%clk 0:09:42.2]} 6... Bg7 {[%clk 0:10:02.3]} 7.
O-O {[%clk 0:09:42.4]} 7... O-O {[%clk 0:10:02.6]} 8. a4 {[%clk 0:09:42.5]} 8...
c6 {[%clk 0:10:00.6]} 9. a5 {[%clk 0:09:38.1]} 9... Nbd7 {[%clk 0:09:41.1]} 10.
a6 {[%clk 0:09:28.8]} 10... Nc5 {[%clk 0:09:27.4]} 11. dxc6 {[%clk 0:08:54]}
11... bxc6 {[%clk 0:09:24.4]} 12. e5 {[%clk 0:08:54]} 12... Nfe4 {[%clk
0:09:12.9]} 13. Nxe4 {[%clk 0:08:40.4]} 13... Nxe4 {[%clk 0:09:13.1]} 14. Bf4
{[%clk 0:08:09.3]} 14... Qb6 {[%clk 0:08:51.4]} 15. Bd3 {[%clk 0:07:40.1]} 15...
d5 {[%clk 0:08:19.4]} 16. b3 {[%clk 0:07:25.7]} 16... Bf5 {[%clk 0:07:07.4]} 17.
Nh4 {[%clk 0:06:34.8]} 17... Nc3 {[%clk 0:06:23.2]} 18. Qf3 {[%clk 0:06:01]}
18... Bxd3 {[%clk 0:06:15.1]} 19. Qxd3 {[%clk 0:06:00.6]} 19... Qd4 {[%clk
0:06:12.7]} 20. Qxd4 {[%clk 0:05:06.7]} 20... Ne2+ {[%clk 0:06:12.5]} 21. Kh1
{[%clk 0:05:08.6]} 21... Nxd4 {[%clk 0:06:13.8]} 22. Nf3 {[%clk 0:04:38.8]}
22... Nxc2 {[%clk 0:05:56.8]} 23. Ra4 {[%clk 0:04:38]} 23... Rfb8 {[%clk
0:05:41.8]} 24. Rc1 {[%clk 0:04:30.4]} 24... Nb4 {[%clk 0:05:31.4]} 25. e6
{[%clk 0:03:50.2]} 25... Rb6 {[%clk 0:04:47.5]} 26. exf7+ {[%clk 0:03:20.4]}
26... Kxf7 {[%clk 0:04:49.4]} 27. Be3 {[%clk 0:03:16.1]} 27... Nd3 {[%clk
0:04:34.2]} 28. Ng5+ {[%clk 0:02:11.8]} 28... Kg8 {[%clk 0:04:27.6]} 29. Rc2
{[%clk 0:01:12.5]} 29... c5 {[%clk 0:03:48.4]} 30. Bxc5 {[%clk 0:00:45.1]} 30...
Rxb3 {[%clk 0:03:37.4]} 31. h4 {[%clk 0:00:29.4]} 31... Rc8 {[%clk 0:03:25.1]}
32. Ra5 {[%clk 0:00:22.4]} 32... Rc3 {[%clk 0:02:49.8]} 33. Rxc3 {[%clk
0:00:12.1]} 33... Bxc3 {[%clk 0:02:50.2]} 34. Ra3 {[%clk 0:00:13.4]} 34... Rxc5
{[%clk 0:02:49.5]} 35. Ne6 {[%clk 0:00:14.6]} 35... Rc4 {[%clk 0:02:40.6]} 36.
Rb3 {[%clk 0:00:15.1]} 36... Nb4 {[%clk 0:02:14.8]} 0-1

[Event "GrandPrix_29.05"]
[Site "Chess.com"]
[Date "2020.05.29"]
[Round "7"]
[White "PotapovaM"]
[Black "Arseniy_Nesterov"]
[Result "0-1"]
[WhiteElo "2172"]
[BlackElo "2307"]
[TimeControl "600+2"]
[EndTime "12:30:08 PDT"]
[Termination "Arseniy_Nesterov won by resignation"]

1. d4 {[%clk 0:10:01.9]} 1... d5 {[%clk 0:09:58.3]} 2. c4 {[%clk 0:10:02.5]}
2... c6 {[%clk 0:09:59.3]} 3. Nc3 {[%clk 0:09:51.3]} 3... Nf6 {[%clk 0:09:59.5]}
4. cxd5 {[%clk 0:09:52.4]} 4... cxd5 {[%clk 0:10:00.3]} 5. Bf4 {[%clk
0:09:53.6]} 5... Nc6 {[%clk 0:10:00.9]} 6. e3 {[%clk 0:09:54.6]} 6... a6 {[%clk
0:09:56.7]} 7. Bd3 {[%clk 0:09:51.3]} 7... e6 {[%clk 0:09:28.4]} 8. Rc1 {[%clk
0:09:51.1]} 8... Bd6 {[%clk 0:09:24.1]} 9. Bxd6 {[%clk 0:09:51.8]} 9... Qxd6
{[%clk 0:09:25]} 10. f4 {[%clk 0:09:53.5]} 10... O-O {[%clk 0:09:12.7]} 11. Nf3
{[%clk 0:09:54.1]} 11... Ng4 {[%clk 0:08:37.8]} 12. Qe2 {[%clk 0:09:11.3]} 12...
f6 {[%clk 0:08:31.6]} 13. O-O {[%clk 0:08:12.1]} 13... Bd7 {[%clk 0:07:08.3]}
14. Bb1 {[%clk 0:07:15.1]} 14... e5 {[%clk 0:05:12.8]} 15. fxe5 {[%clk
0:07:08.6]} 15... fxe5 {[%clk 0:05:11.8]} 16. dxe5 {[%clk 0:05:10.4]} 16...
Ncxe5 {[%clk 0:05:03.9]} 17. Rcd1 {[%clk 0:05:04.3]} 17... Qh6 {[%clk
0:03:03.7]} 18. Rde1 {[%clk 0:03:15.3]} 18... Rae8 {[%clk 0:02:45.1]} 19. h3
{[%clk 0:01:07.2]} 19... Nxe3 {[%clk 0:02:38.3]} 20. Rf2 {[%clk 0:00:43.8]}
20... Nxf3+ {[%clk 0:02:19.9]} 21. Rxf3 {[%clk 0:00:45.7]} 21... d4 {[%clk
0:02:19.5]} 22. Rxf8+ {[%clk 0:00:42.2]} 22... Rxf8 {[%clk 0:02:20.4]} 23. Ne4
{[%clk 0:00:34.7]} 23... Bc6 {[%clk 0:02:01]} 24. Qd2 {[%clk 0:00:19]} 24... Qh4
{[%clk 0:01:44.9]} 25. Nc5 {[%clk 0:00:03.2]} 25... Nxg2 {[%clk 0:01:39.8]} 26.
Re2 {[%clk 0:00:02.3]} 26... Nf4 {[%clk 0:01:38.7]} 27. Rh2 {[%clk 0:00:02.2]}
27... Qg3+ {[%clk 0:01:38.6]} 0-1

[Event "GrandPrix_29.05"]
[Site "Chess.com"]
[Date "2020.05.29"]
[Round "7"]
[White "MirMan90"]
[Black "matej2221"]
[Result "1-0"]
[WhiteElo "2340"]
[BlackElo "2150"]
[TimeControl "600+2"]
[EndTime "12:30:09 PDT"]
[Termination "MirMan90 won on time"]

1. e4 {[%clk 0:09:44.3]} 1... e5 {[%clk 0:10:00.6]} 2. Nf3 {[%clk 0:09:44.4]}
2... Nc6 {[%clk 0:10:01.9]} 3. Bb5 {[%clk 0:09:45.7]} 3... a6 {[%clk 0:10:03.4]}
4. Ba4 {[%clk 0:09:46.4]} 4... Nge7 {[%clk 0:10:04.7]} 5. O-O {[%clk 0:09:44.1]}
5... g6 {[%clk 0:10:06]} 6. c3 {[%clk 0:09:43.8]} 6... Bg7 {[%clk 0:10:07.1]} 7.
d4 {[%clk 0:09:44.4]} 7... exd4 {[%clk 0:10:08.3]} 8. cxd4 {[%clk 0:09:46]} 8...
b5 {[%clk 0:10:09.1]} 9. Bb3 {[%clk 0:09:46.3]} 9... O-O {[%clk 0:10:10.2]} 10.
d5 {[%clk 0:09:39.6]} 10... Na5 {[%clk 0:10:10.4]} 11. Bc2 {[%clk 0:09:37.6]}
11... d6 {[%clk 0:10:07.9]} 12. Nc3 {[%clk 0:09:36.1]} 12... Bb7 {[%clk
0:10:00.7]} 13. Bg5 {[%clk 0:08:57]} 13... Nc4 {[%clk 0:09:47]} 14. Rb1 {[%clk
0:08:42]} 14... Nxb2 {[%clk 0:09:39.1]} 15. Rxb2 {[%clk 0:08:42.1]} 15... Bxc3
{[%clk 0:09:39.6]} 16. Rb3 {[%clk 0:08:43.5]} 16... Bg7 {[%clk 0:09:35.2]} 17.
Qd2 {[%clk 0:08:42.4]} 17... Qd7 {[%clk 0:09:11]} 18. Bh6 {[%clk 0:08:39.4]}
18... c5 {[%clk 0:08:59.3]} 19. dxc6 {[%clk 0:08:17.3]} 19... Nxc6 {[%clk
0:08:57.2]} 20. Rd3 {[%clk 0:08:08.3]} 20... Rad8 {[%clk 0:07:50.6]} 21. Rd1
{[%clk 0:07:47.1]} 21... Rfe8 {[%clk 0:07:49.3]} 22. Bb3 {[%clk 0:07:21.4]}
22... Rxe4 {[%clk 0:07:01.5]} 23. Bg5 {[%clk 0:03:51.9]} 23... Ne7 {[%clk
0:05:50.9]} 24. Rxd6 {[%clk 0:03:15.2]} 24... Qxd6 {[%clk 0:05:49.9]} 25. Qxd6
{[%clk 0:03:16.4]} 25... Rxd6 {[%clk 0:05:50.1]} 26. Rxd6 {[%clk 0:03:18]} 26...
h6 {[%clk 0:04:23.3]} 27. Be3 {[%clk 0:03:16]} 27... Nf5 {[%clk 0:02:06.5]} 28.
Rd8+ {[%clk 0:03:12.9]} 28... Bf8 {[%clk 0:02:03.7]} 29. Bc5 {[%clk 0:02:49.6]}
29... Ne7 {[%clk 0:02:02.9]} 30. Kf1 {[%clk 0:02:28.8]} 30... Kg7 {[%clk
0:00:10.4]} 31. Nd2 {[%clk 0:02:27.9]} 31... Re5 {[%clk 0:00:06.8]} 32. Bd4
{[%clk 0:02:27.3]} 32... Nc6 {[%clk 0:00:07.6]} 33. Bxe5+ {[%clk 0:02:24]} 33...
Nxe5 {[%clk 0:00:09.5]} 34. f4 {[%clk 0:02:21.2]} 34... Ng4 {[%clk 0:00:03.2]}
35. Rd7 {[%clk 0:02:20.5]} 35... Bd5 {[%clk 0:00:02.1]} 36. Bxd5 {[%clk
0:02:19.6]} 36... Ne3+ {[%clk 0:00:02.7]} 37. Ke2 {[%clk 0:02:19.8]} 1-0

[Event "GrandPrix_29.05"]
[Site "Chess.com"]
[Date "2020.05.29"]
[Round "7"]
[White "pheonixking2000"]
[Black "Shahinyan_ChessMood"]
[Result "1-0"]
[WhiteElo "2574"]
[BlackElo "2354"]
[TimeControl "600+2"]
[EndTime "12:30:13 PDT"]
[Termination "pheonixking2000 won by resignation"]

1. d4 {[%clk 0:10:01.9]} 1... Nf6 {[%clk 0:09:56.7]} 2. Nf3 {[%clk 0:10:03.3]}
2... c5 {[%clk 0:09:54]} 3. d5 {[%clk 0:10:01.8]} 3... e6 {[%clk 0:09:49.6]} 4.
Nc3 {[%clk 0:10:03]} 4... b5 {[%clk 0:09:47.9]} 5. Bg5 {[%clk 0:09:38.8]} 5...
b4 {[%clk 0:09:33.5]} 6. Ne4 {[%clk 0:09:35]} 6... Bb7 {[%clk 0:09:17.5]} 7. c4
{[%clk 0:09:08.4]} 7... d6 {[%clk 0:08:25.9]} 8. Qa4+ {[%clk 0:08:25.6]} 8...
Qd7 {[%clk 0:08:05.1]} 9. Qxd7+ {[%clk 0:07:16]} 9... Nbxd7 {[%clk 0:07:47.1]}
10. Bxf6 {[%clk 0:07:14.2]} 10... gxf6 {[%clk 0:07:47.5]} 11. Rd1 {[%clk
0:07:11.4]} 11... Nb6 {[%clk 0:06:58.8]} 12. e3 {[%clk 0:06:45.1]} 12... f5
{[%clk 0:06:47.5]} 13. Ned2 {[%clk 0:06:36.2]} 13... Bg7 {[%clk 0:06:40.6]} 14.
b3 {[%clk 0:06:33.9]} 14... a5 {[%clk 0:06:08.7]} 15. Bd3 {[%clk 0:06:30.8]}
15... a4 {[%clk 0:05:54.8]} 16. O-O {[%clk 0:06:30.2]} 16... Ke7 {[%clk
0:05:49.5]} 17. Rfe1 {[%clk 0:06:09.4]} 17... axb3 {[%clk 0:05:37.3]} 18. axb3
{[%clk 0:05:52.1]} 18... Nd7 {[%clk 0:05:24.9]} 19. g3 {[%clk 0:05:16.3]} 19...
Bc3 {[%clk 0:04:49.1]} 20. e4 {[%clk 0:04:50.7]} 20... fxe4 {[%clk 0:04:32.4]}
21. Rxe4 {[%clk 0:04:52.6]} 21... Nf6 {[%clk 0:04:18.6]} 22. Re3 {[%clk
0:04:52.3]} 22... Ra2 {[%clk 0:03:39.8]} 23. Ne4 {[%clk 0:04:18.6]} 23... Nxe4
{[%clk 0:02:47.7]} 24. Bxe4 {[%clk 0:04:18.4]} 24... e5 {[%clk 0:02:43.9]} 25.
Nh4 {[%clk 0:04:19.8]} 25... Rb2 {[%clk 0:02:12.6]} 26. Rf3 {[%clk 0:04:11.2]}
26... Bc8 {[%clk 0:02:02.5]} 27. Ra1 {[%clk 0:04:01.2]} 27... Re2 {[%clk
0:01:07.6]} 28. Ra7+ {[%clk 0:03:59.7]} 28... Kd8 {[%clk 0:01:09.2]} 29. Bf5
{[%clk 0:03:53.5]} 29... e4 {[%clk 0:01:06.7]} 30. Rf4 {[%clk 0:03:51.9]} 30...
e3 {[%clk 0:00:20.3]} 31. fxe3 {[%clk 0:03:42.7]} 31... Be5 {[%clk 0:00:13.4]}
32. Rf3 {[%clk 0:03:20.9]} 32... Bxf5 {[%clk 0:00:05.6]} 33. Nxf5 {[%clk
0:03:22.8]} 33... Re8 {[%clk 0:00:06]} 34. Nh6 {[%clk 0:02:49.7]} 34... Re7
{[%clk 0:00:03.7]} 35. Nxf7+ {[%clk 0:02:49.2]} 35... Ke8 {[%clk 0:00:04.8]} 36.
Ra8+ {[%clk 0:02:45.8]} 36... Kd7 {[%clk 0:00:06.1]} 37. Nxe5+ {[%clk
0:02:37.9]} 37... dxe5 {[%clk 0:00:08]} 38. Rff8 {[%clk 0:02:31.9]} 38... Kd6
{[%clk 0:00:03.2]} 39. Ra6+ {[%clk 0:02:28.3]} 39... Kd7 {[%clk 0:00:04.7]} 40.
Ra7+ {[%clk 0:02:29.7]} 40... Kd6 {[%clk 0:00:05]} 41. Rf6+ {[%clk 0:02:30.9]}
1-0

[Event "GrandPrix_29.05"]
[Site "Chess.com"]
[Date "2020.05.29"]
[Round "7"]
[White "haddinibilbaoo"]
[Black "IljaJoke"]
[Result "1-0"]
[WhiteElo "2143"]
[BlackElo "2210"]
[TimeControl "600+2"]
[EndTime "12:30:16 PDT"]
[Termination "haddinibilbaoo won by resignation"]

1. d4 {[%clk 0:10:01]} 1... Nf6 {[%clk 0:09:57.6]} 2. Nf3 {[%clk 0:10:01]} 2...
c5 {[%clk 0:09:56.3]} 3. d5 {[%clk 0:09:55.8]} 3... b5 {[%clk 0:09:56.6]} 4. a4
{[%clk 0:09:51.8]} 4... b4 {[%clk 0:09:55.4]} 5. c4 {[%clk 0:09:52.8]} 5... g6
{[%clk 0:09:49.1]} 6. b3 {[%clk 0:09:53.3]} 6... Bg7 {[%clk 0:09:48.9]} 7. Bb2
{[%clk 0:09:54.6]} 7... a5 {[%clk 0:09:47.9]} 8. Nbd2 {[%clk 0:09:55.6]} 8...
O-O {[%clk 0:09:47.4]} 9. e4 {[%clk 0:09:56.4]} 9... d6 {[%clk 0:09:48.2]} 10.
Bd3 {[%clk 0:09:57.3]} 10... e5 {[%clk 0:09:42.9]} 11. dxe6 {[%clk 0:09:45.6]}
11... fxe6 {[%clk 0:09:36.6]} 12. e5 {[%clk 0:09:39.2]} 12... Ng4 {[%clk
0:08:54.7]} 13. Qc2 {[%clk 0:09:30.5]} 13... Nxe5 {[%clk 0:08:38.6]} 14. Nxe5
{[%clk 0:09:30.9]} 14... dxe5 {[%clk 0:08:37]} 15. Ne4 {[%clk 0:09:27.1]} 15...
Qe7 {[%clk 0:08:35.4]} 16. O-O {[%clk 0:09:05.6]} 16... Nc6 {[%clk 0:08:33.9]}
17. Bc1 {[%clk 0:08:14.3]} 17... Nd4 {[%clk 0:08:30.6]} 18. Qd1 {[%clk
0:08:12.5]} 18... Rf5 {[%clk 0:07:51.5]} 19. Rb1 {[%clk 0:07:12]} 19... Bb7
{[%clk 0:07:48.8]} 20. Qg4 {[%clk 0:06:34.7]} 20... Raf8 {[%clk 0:07:47.2]} 21.
Bg5 {[%clk 0:06:33.1]} 21... Qc7 {[%clk 0:07:32.6]} 22. Ng3 {[%clk 0:05:26.4]}
22... Qf7 {[%clk 0:06:29.3]} 23. Be3 {[%clk 0:03:29]} 23... h5 {[%clk
0:05:11.2]} 24. Qd1 {[%clk 0:03:05.2]} 24... h4 {[%clk 0:05:11.5]} 25. Nxf5
{[%clk 0:03:04.2]} 25... exf5 {[%clk 0:05:12]} 26. Bxd4 {[%clk 0:03:05.4]} 26...
cxd4 {[%clk 0:04:51.8]} 27. c5 {[%clk 0:02:49.1]} 27... Qc7 {[%clk 0:04:52.3]}
28. Rc1 {[%clk 0:02:43.8]} 28... h3 {[%clk 0:04:26.3]} 29. c6 {[%clk 0:02:19.1]}
29... hxg2 {[%clk 0:04:24.7]} 30. Re1 {[%clk 0:02:20.3]} 30... Bc8 {[%clk
0:04:10.4]} 31. Qf3 {[%clk 0:01:36.5]} 31... e4 {[%clk 0:03:55.1]} 32. Bc4+
{[%clk 0:01:36.2]} 32... Kh7 {[%clk 0:03:56.5]} 33. Qxg2 {[%clk 0:00:45.7]}
33... Qxc6 {[%clk 0:03:32.8]} 34. Bg8+ {[%clk 0:00:45.4]} 34... Rxg8 {[%clk
0:02:37.7]} 35. Rxc6 {[%clk 0:00:47.3]} 35... Be5 {[%clk 0:02:34]} 36. Rec1
{[%clk 0:00:38.9]} 36... Bd7 {[%clk 0:02:31.1]} 37. Rc7 {[%clk 0:00:29.7]} 37...
Bxc7 {[%clk 0:02:30.9]} 38. Rxc7 {[%clk 0:00:31.6]} 38... Rg7 {[%clk 0:02:32.3]}
39. Qh3+ {[%clk 0:00:23.6]} 39... Kg8 {[%clk 0:02:32.4]} 40. Qh4 {[%clk
0:00:25.1]} 40... Be6 {[%clk 0:02:25.5]} 41. Qd8+ {[%clk 0:00:20.6]} 41... Kh7
{[%clk 0:02:25.9]} 42. Rxg7+ {[%clk 0:00:21.6]} 42... Kxg7 {[%clk 0:02:27.2]}
43. Qxd4+ {[%clk 0:00:23.2]} 43... Kh7 {[%clk 0:02:27.8]} 44. Qa7+ {[%clk
0:00:22.5]} 44... Kh6 {[%clk 0:02:28]} 45. Qxa5 {[%clk 0:00:24.1]} 45... Bxb3
{[%clk 0:02:29.1]} 46. Qxb4 {[%clk 0:00:25.4]} 1-0

[Event "GrandPrix_29.05"]
[Site "Chess.com"]
[Date "2020.05.29"]
[Round "7"]
[White "MasterSonnevanck2"]
[Black "Luq27"]
[Result "1-0"]
[WhiteElo "2086"]
[BlackElo "2084"]
[TimeControl "600+2"]
[EndTime "12:30:17 PDT"]
[Termination "MasterSonnevanck2 won by resignation"]

1. d4 {[%clk 0:08:04.6]} 1... e6 {[%clk 0:09:53.7]} 2. c4 {[%clk 0:08:05.2]}
2... Bb4+ {[%clk 0:09:51.7]} 3. Bd2 {[%clk 0:08:02.5]} 3... Bxd2+ {[%clk
0:09:50.4]} 4. Qxd2 {[%clk 0:08:00.9]} 4... Nf6 {[%clk 0:09:51.3]} 5. Nc3 {[%clk
0:08:01.5]} 5... d5 {[%clk 0:09:49.9]} 6. cxd5 {[%clk 0:08:02.3]} 6... exd5
{[%clk 0:09:49.7]} 7. e3 {[%clk 0:08:03.6]} 7... Bf5 {[%clk 0:09:44.8]} 8. Nge2
{[%clk 0:07:59.5]} 8... O-O {[%clk 0:09:44.9]} 9. Ng3 {[%clk 0:08:00]} 9... Bg6
{[%clk 0:09:46]} 10. Bd3 {[%clk 0:07:59]} 10... Bxd3 {[%clk 0:09:41.1]} 11. Qxd3
{[%clk 0:07:58.9]} 11... c6 {[%clk 0:09:40.9]} 12. O-O {[%clk 0:07:59.1]} 12...
Nbd7 {[%clk 0:09:30.2]} 13. f3 {[%clk 0:07:54.7]} 13... c5 {[%clk 0:09:14.7]}
14. Rad1 {[%clk 0:07:47.7]} 14... Re8 {[%clk 0:09:13.8]} 15. e4 {[%clk
0:07:17.1]} 15... dxe4 {[%clk 0:08:31.6]} 16. Ncxe4 {[%clk 0:07:08.9]} 16... Qb6
{[%clk 0:07:59.9]} 17. Kh1 {[%clk 0:06:47.5]} 17... Rad8 {[%clk 0:07:17.7]} 18.
d5 {[%clk 0:05:56.1]} 18... Qxb2 {[%clk 0:06:26.8]} 19. d6 {[%clk 0:04:55.7]}
19... Qxa2 {[%clk 0:05:56.7]} 20. Nf5 {[%clk 0:04:48.6]} 20... Nxe4 {[%clk
0:05:37.7]} 21. fxe4 {[%clk 0:04:48.8]} 21... Ne5 {[%clk 0:05:29.4]} 22. Qg3
{[%clk 0:04:37.8]} 22... Ng6 {[%clk 0:05:27.9]} 23. d7 {[%clk 0:04:10.5]} 23...
Rf8 {[%clk 0:05:22.9]} 24. Rd6 {[%clk 0:04:02.2]} 24... Qa4 {[%clk 0:05:16.3]}
25. Qc3 {[%clk 0:03:31.1]} 25... f6 {[%clk 0:05:09.8]} 26. Nxg7 {[%clk
0:03:02.8]} 26... Rxd7 {[%clk 0:05:02.2]} 27. Rxd7 {[%clk 0:02:37.8]} 27... Qxd7
{[%clk 0:05:04.1]} 28. Nh5 {[%clk 0:02:36.7]} 28... Ne5 {[%clk 0:04:11.3]} 29.
Qxc5 {[%clk 0:02:25]} 29... b6 {[%clk 0:03:56.1]} 30. Qa3 {[%clk 0:02:05.5]}
30... Qd3 {[%clk 0:02:53.3]} 31. Qa2+ {[%clk 0:02:02.4]} 31... Kh8 {[%clk
0:02:45.5]} 32. Ng3 {[%clk 0:02:00.8]} 32... Qd7 {[%clk 0:02:12.1]} 33. Qe2
{[%clk 0:01:48]} 33... Qg4 {[%clk 0:01:54]} 34. Qc2 {[%clk 0:01:24.5]} 34... Rc8
{[%clk 0:01:32.3]} 35. Qd2 {[%clk 0:01:12.5]} 35... Qh4 {[%clk 0:01:28.6]} 36.
Nf5 {[%clk 0:01:03.4]} 36... Qxe4 {[%clk 0:01:23.8]} 37. Qh6 {[%clk 0:00:56.5]}
37... Qa8 {[%clk 0:01:20.4]} 1-0